bitfinex-derivatives/quotes_BTCF0:USTF0_20251118
["timestamp","ask_amount","ask_price","bid_price","bid_amount"]
[1763441106249,0.00016677,89957.0,89950.0,0.00219803]
[1763441106450,0.04466,89951.0,89950.0,0.00219803]
[1763441106840,0.04491885,89951.0,89950.0,0.00219803]
[1763441107149,0.00016677,89957.0,89951.0,0.1112939]
[1763441107449,0.00016677,89957.0,89956.0,0.3608]
[1763441108848,0.04508562,89957.0,89956.0,0.3608]
[1763441109250,0.0132,89950.0,89949.0,0.63072]
[1763441109557,0.0132,89950.0,89945.0,0.3608]
[1763441109758,0.02152,89946.0,89945.0,0.3608]
[1763441110055,0.04466,89946.0,89945.0,0.3608]
[1763441110356,0.04491885,89946.0,89945.0,0.3608]
[1763441110560,0.0132,89950.0,89945.0,0.3608]
[1763441110753,0.00016677,89957.0,89946.0,0.11116]
[1763441111060,0.374,89986.0,89956.0,0.3608]
[1763441111247,0.01345885,89976.0,89973.0,0.3608]
[1763441111451,0.0132,89976.0,89973.0,0.3608]
[1763441111854,0.0132,89986.0,89973.0,0.3608]
[1763441112060,0.00025885,89985.0,89981.0,0.3608]
[1763441112463,0.0132,89999.0,89981.0,0.3608]
[1763441112464,0.00016677,89992.0,89981.0,0.3608]
[1763441112661,0.00016677,89992.0,89990.0,0.00219803]
[1763441112662,0.02152,89991.0,89990.0,0.00219803]
[1763441112862,0.02177885,89991.0,89990.0,0.00219803]
[1763441113369,0.00025885,89991.0,89990.0,0.00219803]
[1763441114466,0.00016677,89992.0,89990.0,0.00219803]
[1763441114672,0.00016677,89992.0,89991.0,0.3608]
[1763441114861,0.02168677,89992.0,89990.0,0.00219803]
[1763441115174,0.02168677,89992.0,89973.0,0.3608]
[1763441115175,0.04466,89981.0,89980.0,0.00219803]
[1763441115669,0.04491885,89981.0,89980.0,0.00219803]
[1763441115867,0.04466,89975.0,89970.0,0.20511557]
[1763441116066,0.04466,89975.0,89965.0,0.3608]
[1763441116067,0.04466,89966.0,89965.0,0.3608]
[1763441116267,0.04466,89966.0,89960.0,0.00219803]
[1763441116465,0.02152,89961.0,89960.0,0.00219803]
[1763441116868,0.02177885,89961.0,89960.0,0.00219803]
[1763441117369,0.00025885,89961.0,89960.0,0.00219803]
[1763441118865,0.04491885,89961.0,89960.0,0.00219803]
[1763441120776,0.00025885,89961.0,89960.0,0.00219803]
[1763441121872,0.04430885,89961.0,89960.0,0.00219803]
[1763441126776,0.00025885,89961.0,89960.0,0.00219803]
[1763441126974,0.04490885,89961.0,89960.0,0.00219803]
[1763441128678,0.07029428,89961.0,89960.0,0.00219803]
[1763441129078,0.04465,89953.0,89952.0,0.36096677]
[1763441129271,0.04490885,89953.0,89952.0,0.36096677]
[1763441129678,0.07032603,89953.0,89952.0,0.00016677]
[1763441130179,0.05748,89936.0,89934.0,0.26984]
[1763441130380,0.04465,89931.0,89930.0,0.00219803]
[1763441130878,0.04490885,89931.0,89930.0,0.00219803]
[1763441131783,0.00025885,89931.0,89930.0,0.00219803]
[1763441132078,0.01283,89936.0,89930.0,0.00219803]
[1763441132284,0.00025885,89935.0,89930.0,0.00219803]
[1763441132485,0.04465,89931.0,89930.0,0.00219803]
[1763441132984,0.04490885,89931.0,89930.0,0.00219803]
[1763441138776,0.04465,89931.0,89930.0,0.00219803]
[1763441139183,0.04465,89912.0,89910.0,0.16347042]
[1763441139380,0.04465,89911.0,89910.0,0.00219803]
[1763441139590,0.01283,89914.0,89906.0,1.5]
[1763441139591,0.04465,89907.0,89906.0,1.5]
[1763441140090,0.04488559,89907.0,89906.0,1.5]
[1763441140391,0.04465,89901.0,89900.0,0.16347042]
[1763441140589,0.04465,89901.0,89900.0,0.16566845]
[1763441140788,0.04477948,89901.0,89900.0,0.16566845]
[1763441140977,0.04477948,89901.0,89900.0,0.00219803]
[1763441141178,0.04477948,89901.0,89900.0,1.50219803]
[1763441142485,0.04465,89895.0,89894.0,0.3608]
[1763441143088,0.04477948,89895.0,89894.0,1.8608]
[1763441143285,0.04477948,89895.0,89894.0,1.5]
[1763441145492,0.31457948,89895.0,89894.0,1.5]
[1763441146083,0.04477948,89895.0,89894.0,1.5]
[1763441146284,0.31453948,89895.0,89894.0,1.5]
[1763441146687,0.04477948,89895.0,89894.0,1.5]
[1763441146888,0.31453948,89895.0,89894.0,1.5]
[1763441147592,0.04477948,89895.0,89894.0,1.5]
[1763441147788,0.31453948,89895.0,89894.0,1.5]
[1763441148180,0.04477948,89895.0,89894.0,1.5]
[1763441148385,0.31453948,89895.0,89894.0,1.5]
[1763441148688,0.40557948,89895.0,89894.0,1.5]
[1763441148993,0.67533948,89895.0,89894.0,1.5]
[1763441150982,0.40557948,89895.0,89894.0,1.5]
[1763441151192,0.00012948,89895.0,89894.0,1.8608]
[1763441151493,0.01283,89903.0,89894.0,1.8608]
[1763441151690,0.00012948,89902.0,89894.0,1.8608]
[1763441153091,0.00012948,89902.0,89894.0,2.2216]
[1763441153299,0.00012948,89902.0,89895.0,0.26972]
[1763441155095,0.02148,89896.0,89895.0,0.26972]
[1763441155299,0.00012948,89902.0,89895.0,0.26972]
[1763441155596,0.01283,89903.0,89895.0,0.26972]
[1763441155798,0.02148,89896.0,89895.0,0.26972]
[1763441156202,0.04465,89895.0,89894.0,1.5]
[1763441157387,0.04465,89895.0,89894.0,1.49987052]
[1763441158897,0.04373,89887.0,89880.0,0.3608]
[1763441159097,0.04373,89864.0,89863.0,0.3608]
[1763441159299,0.04373,89864.0,89860.0,0.16347042]
[1763441159300,0.04373,89861.0,89860.0,0.00219803]
[1763441159501,0.04373,89861.0,89847.0,0.3608]
[1763441159502,0.04373,89859.0,89847.0,0.3608]
[1763441159701,0.31365,89859.0,89847.0,0.3608]
[1763441159892,0.31365,89859.0,89858.0,1.50009953]
[1763441160098,0.04373,89848.0,89847.0,0.3608]
[1763441160413,0.04373,89847.0,89836.0,0.3608]
[1763441160900,0.3608,89853.0,89850.0,0.00219803]
[1763441161208,0.04386955,89852.0,89851.0,1.5]
[1763441161808,0.31398955,89852.0,89851.0,1.5]
[1763441162105,0.339369,89852.0,89851.0,1.5]
[1763441162302,0.04386955,89852.0,89851.0,1.5]
[1763441162498,0.27025955,89852.0,89840.0,0.16347042]
[1763441162702,0.04373,89847.0,89840.0,0.16566845]
[1763441163000,0.04373,89847.0,89835.0,0.3608]
[1763441163208,0.04373,89847.0,89837.0,0.16347042]
[1763441163398,0.04373,89847.0,89846.0,1.50027826]
[1763441164211,0.02221,89847.0,89846.0,1.50027826]
[1763441164402,0.31381,89847.0,89846.0,1.50027826]
[1763441165604,0.04373,89847.0,89846.0,1.50027826]
[1763441165907,0.00013955,89852.0,89851.0,0.04337]
[1763441166107,0.00013955,89852.0,89851.0,0.40417]
[1763441166606,0.04386955,89852.0,89851.0,0.38255]
[1763441166803,0.04373,89851.0,89850.0,0.00219803]
[1763441166999,0.04373,89851.0,89850.0,0.02394803]
[1763441167603,0.04373,89851.0,89850.0,0.00219803]
[1763441167910,0.00013955,89852.0,89851.0,0.04337]
[1763441168099,0.00013955,89852.0,89851.0,0.40417]
[1763441168707,0.27008,89868.0,89851.0,0.40417]
[1763441168910,0.27008,89868.0,89861.0,0.3608]
[1763441168911,0.04373,89862.0,89861.0,0.3608]
[1763441169412,0.04373,89862.0,89860.0,0.00219803]
[1763441169413,0.04373,89861.0,89860.0,0.00219803]
[1763441169711,0.04381869,89861.0,89860.0,0.00219803]
[1763441169906,8.869e-05,89861.0,89860.0,0.04556803]
[1763441170110,8.869e-05,89861.0,89860.0,0.40636803]
[1763441170708,0.04381869,89861.0,89860.0,0.40636803]
[1763441171013,0.04381869,89861.0,89860.0,0.36299803]
[1763441171307,0.04381869,89861.0,89851.0,0.52427042]
[1763441171308,0.04373,89852.0,89851.0,0.3608]
[1763441171613,0.04373,89851.0,89850.0,0.16566845]
[1763441171809,0.04373,89851.0,89850.0,0.00219803]
[1763441172708,0.27016,89851.0,89850.0,0.04556803]
[1763441172909,0.31389,89851.0,89850.0,0.00219803]
[1763441173812,0.04373,89851.0,89850.0,0.00219803]
[1763441174110,0.04373,89851.0,89850.0,0.40636803]
[1763441174306,0.04373,89851.0,89850.0,0.36299803]
[1763441175111,0.04373,89851.0,89850.0,0.40636803]
[1763441176303,0.01398,89856.0,89855.0,0.04337]
[1763441176304,0.05771,89856.0,89855.0,0.04337]
[1763441176513,0.05771,89856.0,89855.0,0.02175]
[1763441176714,8.869e-05,89861.0,89860.0,0.04337]
[1763441176914,8.869e-05,89861.0,89860.0,0.40636803]
[1763441177213,0.00016687,89872.0,89871.0,0.04337]
[1763441177413,0.00016687,89872.0,89871.0,0.40417]
[1763441177710,0.3608,89901.0,89873.0,0.1113904]
[1763441177916,0.02538004,89891.0,89883.0,0.40417]
[1763441178217,0.37199949,89901.0,89880.0,0.00219803]
[1763441178218,0.04373,89881.0,89880.0,0.16566845]
[1763441178512,0.04373,89881.0,89880.0,0.00219803]
[1763441179122,0.04269,89873.0,89872.0,0.00016687]
[1763441179304,0.40349,89873.0,89872.0,0.00016687]
[1763441179813,0.04269,89873.0,89872.0,0.00016687]
[1763441180614,0.01398,89882.0,89872.0,0.04542687]
[1763441180818,0.02539123,89881.0,89877.0,0.3608]
[1763441181112,0.02113,89878.0,89877.0,0.38363]
[1763441181314,0.04269,89878.0,89877.0,0.38363]
[1763441181621,0.06808441,89878.0,89877.0,0.3608]
[1763441181819,0.04269,89873.0,89872.0,0.16363729]
[1763441182212,0.04269,89873.0,89872.0,0.00016687]
[1763441185021,0.04269,89873.0,89872.0,0.04542687]
[1763441185517,0.01398,89882.0,89872.0,0.04542687]
[1763441185708,0.02544256,89881.0,89872.0,0.20889729]
[1763441185907,0.01398,89882.0,89872.0,0.20789729]
[1763441185908,0.02544256,89880.0,89872.0,0.20789729]
[1763441186114,0.04269,89873.0,89872.0,0.20789729]
[1763441186311,0.06813256,89873.0,89872.0,0.04442687]
[1763441186519,0.04269,89871.0,89870.0,0.00219803]
[1763441188014,0.04455,89869.0,89868.0,0.3608]
[1763441188216,0.04455,89861.0,89860.0,0.00219803]
[1763441188422,0.04455,89851.0,89850.0,0.3608]
[1763441188722,0.07002014,89851.0,89850.0,0.3608]
[1763441188925,0.07002014,89851.0,89850.0,0.36299803]
[1763441190820,0.02547014,89851.0,89850.0,0.40772803]
[1763441191009,0.00016687,89859.0,89850.0,0.40772803]
[1763441191010,0.089057,89857.0,89856.0,0.04473]
[1763441191214,0.089057,89857.0,89850.0,0.3608]
[1763441191215,0.04455,89851.0,89850.0,0.3608]
[1763441191418,0.01354,89856.0,89850.0,0.3608]
[1763441191419,0.01354,89856.0,89850.0,0.40772803]
[1763441191620,0.0254684,89855.0,89850.0,0.36299803]
[1763441191830,0.05809,89856.0,89850.0,0.36299803]
[1763441192022,0.02546851,89855.0,89850.0,0.36299803]
[1763441192223,0.01354,89856.0,89850.0,0.36299803]
[1763441192418,0.02547019,89855.0,89854.0,0.04473]
[1763441192621,0.00016687,89859.0,89858.0,0.04473]
[1763441192917,0.05853,89882.0,89860.0,0.00219803]
[1763441193114,0.02286,89875.0,89874.0,0.40553]
[1763441193315,0.09061392,89886.0,89885.0,0.04473]
[1763441193524,0.02548429,89886.0,89885.0,0.04473]
[1763441195427,0.07003429,89886.0,89885.0,0.02168]
[1763441195825,0.04455,89881.0,89880.0,0.00219803]
[1763441197128,0.04455,89878.0,89877.0,0.00016687]
[1763441197323,0.07001597,89878.0,89877.0,0.00016687]
[1763441198721,0.04455,89864.0,89863.0,0.3608]
[1763441199721,0.04455,89861.0,89860.0,0.00219803]
[1763441200028,0.04455,89851.0,89850.0,0.20572405]
[1763441200217,0.04455,89851.0,89850.0,0.00219803]
[1763441200416,0.3608,89868.0,89860.0,0.04473]
[1763441200629,0.04831676,89867.0,89866.0,0.02168]
[1763441200819,0.01354,89869.0,89868.0,0.04473]
[1763441201024,0.08354986,89869.0,89868.0,0.02168]
[1763441201218,0.08354986,89869.0,89858.0,0.20572405]
[1763441201418,0.05809,89869.0,89860.0,0.00219803]
[1763441201821,0.04455,89861.0,89860.0,0.00219803]
[1763441202828,0.04455,89861.0,89860.0,0.02387803]
[1763441203024,0.01354,89869.0,89868.0,0.02168]
[1763441203331,0.06185945,89869.0,89868.0,0.02168]
[1763441203526,0.0364,89869.0,89868.0,0.02168]
[1763441203725,0.05809,89869.0,89859.0,0.20572405]
[1763441203930,0.05809,89869.0,89860.0,0.00219803]
[1763441204825,0.04455,89861.0,89860.0,0.00219803]
[1763441208935,0.40535,89870.0,89869.0,0.04473]
[1763441209129,0.4306665,89870.0,89859.0,0.20572405]
[1763441209327,0.04455,89861.0,89860.0,0.00219803]
[1763441209924,0.00016687,89873.0,89872.0,0.04473]
[1763441211135,0.40551687,89873.0,89872.0,0.02168]
[1763441211337,0.04455,89871.0,89870.0,0.00219803]
[1763441212135,0.00016687,89873.0,89870.0,0.04692803]
[1763441212332,0.00016687,89873.0,89872.0,0.04473]
[1763441212635,0.04471687,89873.0,89872.0,0.02168]
[1763441213040,0.04455,89871.0,89870.0,0.00219803]
[1763441213241,0.04455,89871.0,89870.0,0.02387803]
[1763441213540,0.02286,89871.0,89870.0,0.04692803]
[1763441214029,0.00016687,89873.0,89872.0,0.04473]
[1763441215136,0.04471687,89873.0,89872.0,0.04473]
[1763441216035,0.04455,89871.0,89870.0,0.00219803]
[1763441220440,0.04455,89871.0,89865.0,0.3608]
[1763441220641,0.04388,89866.0,89865.0,0.3608]
[1763441221348,0.04388,89861.0,89860.0,0.00219803]
[1763441223738,0.04388,89851.0,89846.0,1.50027826]
[1763441224043,0.04388,89847.0,89846.0,1.50027826]
[1763441225843,0.00219803,89850.0,89849.0,0.04598]
[1763441226039,0.0348,89859.0,89858.0,0.04598]
[1763441226240,0.05719,89859.0,89858.0,0.40678]
[1763441226639,0.05719,89870.0,89869.0,0.04598]
[1763441226942,0.05938803,89870.0,89869.0,0.04598]
[1763441227141,0.04388,89868.0,89867.0,0.3608]
[1763441227343,0.04388,89868.0,89867.0,0.38408]
[1763441227648,0.04388,89859.0,89858.0,0.3608]
[1763441227849,0.04388,89859.0,89858.0,0.40678]
[1763441228251,0.04388,89854.0,89853.0,0.3608]
[1763441228550,0.04388,89851.0,89850.0,0.00073267]
[1763441230437,0.04388,89851.0,89850.0,0.04671267]
[1763441230745,0.04388,89851.0,89850.0,0.02401267]
[1763441231047,0.04388,89851.0,89850.0,0.04671267]
[1763441231251,0.02149,89851.0,89850.0,0.04671267]
[1763441231452,0.04388,89851.0,89850.0,0.04671267]
[1763441231748,0.04388,89851.0,89850.0,0.00073267]
[1763441232552,0.04388,89851.0,89850.0,0.04671267]
[1763441234753,0.04388,89851.0,89850.0,0.00073267]
[1763441235043,0.04388,89851.0,89846.0,1.50027826]
[1763441235044,0.00219803,89850.0,89846.0,1.50027826]
[1763441235250,0.04388,89847.0,89846.0,1.50027826]
[1763441235451,0.04388,89847.0,89846.0,1.86107826]
[1763441238947,0.04564,89838.0,89837.0,0.3608]
[1763441239355,0.04564,89829.0,89828.0,0.3608]
[1763441239655,0.04564,89829.0,89828.0,0.40464]
[1763441239844,0.04783803,89830.0,89829.0,0.04384]
[1763441240044,0.06096803,89830.0,89829.0,1.5]
[1763441241642,0.42176803,89830.0,89829.0,1.5]
[1763441242251,0.51161837,89830.0,89829.0,1.5]
[1763441242953,0.42176803,89830.0,89829.0,1.5]
[1763441244358,0.42176803,89830.0,89810.0,0.00011194]
[1763441244359,0.04564,89811.0,89810.0,0.00011194]
[1763441244659,0.04564,89811.0,89806.0,0.00027838]
[1763441244660,0.00219803,89810.0,89806.0,0.00027838]
[1763441244958,0.04564,89796.0,89782.0,0.3608]
[1763441245160,0.36327963,89809.0,89789.0,0.04384]
[1763441245161,0.04783803,89790.0,89789.0,0.04384]
[1763441245459,0.00219803,89790.0,89777.0,0.3608]
[1763441245753,0.00219803,89790.0,89748.0,0.6692706]
[1763441245754,0.04564,89786.0,89695.0,0.10938285]
[1763441245953,0.04564,89786.0,89650.0,0.01313]
[1763441245954,0.00999999,89760.0,89610.0,0.01107141]
[1763441246255,0.20572405,89650.0,89615.0,0.07984054]
[1763441246446,0.00999999,89640.0,89616.0,0.01107141]
[1763441246651,0.00219803,89640.0,89620.0,0.07984054]
[1763441246856,0.00219803,89640.0,89606.0,0.013409]
[1763441246857,0.93245937,89639.0,89606.0,0.013409]
[1763441247056,0.00073267,89630.0,89620.0,0.00219803]
[1763441247254,0.20645672,89630.0,89606.0,0.134609]
[1763441247458,0.29258314,89629.0,89610.0,0.00219803]
[1763441247758,0.00073267,89620.0,89610.0,0.00219803]
[1763441248153,0.25185281,89619.0,89610.0,0.00219803]
[1763441248354,0.00013968,89618.0,89610.0,0.01326944]
[1763441248550,0.00013968,89618.0,89600.0,0.09980068]
[1763441248747,0.00073267,89610.0,89600.0,0.15640068]
[1763441248947,0.00073267,89610.0,89560.0,0.0566]
[1763441248948,0.00073267,89610.0,89540.0,0.0566]
[1763441249155,0.20572405,89580.0,89480.0,0.00999999]
[1763441249461,0.20572405,89580.0,89384.0,0.08806343]
[1763441249462,0.03974041,89446.0,89425.0,0.05871444]
[1763441249663,0.00999999,89480.0,89465.0,0.0566]
[1763441249957,0.00999999,89480.0,89436.0,0.26232405]
[1763441249958,0.00999999,89470.0,89436.0,0.0242]
[1763441250264,0.27011616,89479.0,89460.0,0.20572405]
[1763441250560,0.1999,89520.0,89436.0,0.0242]
[1763441250561,0.00219803,89470.0,89465.0,0.0566]
[1763441250761,0.11172001,89519.0,89465.0,0.0566]
[1763441250957,0.69616294,89520.0,89470.0,0.20572405]
[1763441250958,0.00219803,89520.0,89470.0,0.20572405]
[1763441251167,0.11327318,89518.0,89471.0,0.29348]
[1763441251363,0.09360447,89519.0,89470.0,0.20572405]
[1763441251552,0.00219803,89520.0,89471.0,0.2936]
[1763441251753,0.00219803,89520.0,89470.0,0.12328594]
[1763441251754,0.20572405,89500.0,89470.0,0.12328594]
[1763441252066,0.00219803,89480.0,89476.0,0.00016758]
[1763441252254,0.00219803,89490.0,89461.0,1.5]
[1763441252456,0.0154851,89479.0,89461.0,1.5]
[1763441252655,0.23747054,89516.0,89461.0,1.5]
[1763441252656,0.00219803,89470.0,89462.0,0.29476]
[1763441252857,0.00219803,89470.0,89461.0,1.59618485]
[1763441253062,0.00219803,89470.0,89438.0,0.29496]
[1763441253063,0.1119289,89441.0,89438.0,0.29496]
[1763441253265,0.1119289,89441.0,89362.0,0.1120271]
[1763441253266,0.0001018,89440.0,89400.0,0.00999999]
[1763441253468,0.1119332,89438.0,89436.0,0.12038485]
[1763441253656,0.3608,89437.0,89436.0,0.12038485]
[1763441253857,0.3608,89437.0,89370.0,0.00999999]
[1763441253858,0.53510967,89437.0,89400.0,0.56652405]
[1763441254161,0.3608,89408.0,89407.0,0.352]
[1763441254371,0.3608,89429.0,89407.0,0.44818485]
[1763441254555,0.3608,89462.0,89440.0,0.0566]
[1763441254756,0.3608,89454.0,89428.0,1.51138804]
[1763441254961,0.29758367,89495.0,89428.0,1.51138804]
[1763441254962,0.16781205,89435.0,89428.0,1.60757289]
[1763441255166,0.3608,89438.0,89434.0,0.01138804]
[1763441255362,0.3608,89449.0,89440.0,0.0566]
[1763441255561,0.29439164,89437.0,89428.0,1.0185478]
[1763441255759,0.3608,89429.0,89377.0,0.3608]
[1763441255963,0.3608,89404.0,89377.0,0.3608]
[1763441256265,0.68709663,89440.0,89320.0,0.00999999]
[1763441256266,0.0003359,89378.0,89371.0,0.3608]
[1763441256661,0.3608,89376.0,89360.0,0.3608]
[1763441256873,0.3608,89368.0,89366.0,0.0001678]
[1763441257177,0.09923019,89367.0,89366.0,0.0001678]
[1763441257768,0.12402766,89369.0,89366.0,2.1199518]
[1763441257969,0.3608,89389.0,89376.0,0.0566]
[1763441258168,0.1999,89543.0,89376.0,0.0566]
[1763441258169,0.3608,89420.0,89408.0,0.0566]
[1763441258359,0.00011926,89419.0,89408.0,0.0566]
[1763441258562,0.3608,89429.0,89412.0,0.3608]
[1763441258760,0.3608,89459.0,89440.0,0.0566]
[1763441258960,0.70436,89534.0,89440.0,0.0566]
[1763441258961,0.3608,89487.0,89472.0,0.0566]
[1763441259170,0.27484374,89509.0,89504.0,0.0566]
[1763441259374,0.16857593,89515.0,89508.0,0.3608]
[1763441259669,0.16857593,89519.0,89504.0,0.0566]
[1763441259670,0.3608,89531.0,89509.0,0.3608]
[1763441259869,0.3608,89547.0,89526.0,0.3608]
[1763441260073,0.3608,89547.0,89504.0,0.0566]
[1763441260074,0.37131983,89530.0,89529.0,0.0566]
[1763441260268,0.41271786,89530.0,89463.0,0.3608]
[1763441260570,0.41271786,89530.0,89496.0,0.0566]
[1763441260571,0.3608,89508.0,89496.0,0.0566]
[1763441260876,0.3608,89518.0,89496.0,0.0566]
[1763441260877,0.00236558,89510.0,89497.0,1.5]
[1763441261074,0.00016755,89510.0,89498.0,0.3608]
[1763441261274,0.1118533,89502.0,89498.0,0.3608]
[1763441261574,0.5591476,89521.0,89498.0,0.3608]
[1763441261575,0.1118231,89526.0,89501.0,0.3608]
[1763441261760,0.1118231,89526.0,89524.0,0.3608]
[1763441261967,0.1117749,89564.0,89524.0,0.3608]
[1763441261968,0.1117377,89594.0,89529.0,0.0566]
[1763441262166,0.1999,89658.0,89529.0,0.0566]
[1763441262167,0.3608,89698.0,89628.0,0.0566]
[1763441262374,0.30107153,89680.0,89650.0,0.00999999]
[1763441262575,0.16718704,89657.0,89650.0,0.00999999]
[1763441262770,0.00219803,89660.0,89650.0,0.00999999]
[1763441262972,0.11152001,89659.0,89656.0,0.00016721]
[1763441263167,0.16644936,89659.0,89658.0,0.7216]
[1763441263369,0.16644936,89659.0,89658.0,0.3608]
[1763441263668,0.00219803,89660.0,89658.0,0.3608]
[1763441263870,0.47281777,89659.0,89658.0,0.3608]
[1763441264064,0.47281777,89659.0,89650.0,0.36096731]
[1763441264065,0.47277777,89659.0,89652.0,0.3608]
[1763441264273,0.11152001,89658.0,89652.0,0.34079064]
[1763441264473,0.11152001,89658.0,89645.0,0.3608]
[1763441264772,0.16789777,89657.0,89656.0,0.3608]
[1763441264962,0.52869777,89657.0,89637.0,0.3608]
[1763441265168,0.00219803,89650.0,89637.0,0.3608]
[1763441265473,0.16737261,89649.0,89637.0,0.3608]
[1763441265680,0.3608,89646.0,89635.0,0.00016731]
[1763441265872,0.00219803,89640.0,89635.0,0.00016731]
[1763441266188,0.16736819,89645.0,89639.0,0.3608]
[1763441266472,0.3608,89695.0,89642.0,0.0010592]
[1763441266672,0.7044,89730.0,89640.0,0.0566]
[1763441266673,0.30444,89697.0,89693.0,0.3608]
[1763441266872,0.30444,89697.0,89695.0,0.00148288]
[1763441267072,0.16690919,89726.0,89696.0,0.00170579]
[1763441267270,0.30436,89725.0,89720.0,0.00093092]
[1763441267471,0.16690919,89717.0,89714.0,0.0001672]
[1763441267674,0.3042,89716.0,89711.0,0.00212947]
[1763441267876,0.3042,89716.0,89707.0,0.0001672]
[1763441267877,0.3608,89715.0,89707.0,0.0001672]
[1763441268072,0.00199978,89710.0,89684.0,0.3608]
[1763441268270,0.3608,89691.0,89668.0,0.3608]
[1763441268475,0.00199978,89680.0,89670.0,0.00093092]
[1763441268873,0.16757492,89679.0,89670.0,0.00093092]
[1763441269170,0.16757492,89679.0,89678.0,0.3608]
[1763441269374,0.00199978,89680.0,89678.0,0.3608]
[1763441269569,0.00199978,89680.0,89666.0,0.0001672]
[1763441269570,0.1116315,89679.0,89670.0,0.00093092]
[1763441269974,0.1116315,89679.0,89674.0,0.3608]
[1763441270176,0.0001672,89683.0,89678.0,0.3608]
[1763441270480,0.30107153,89740.0,89678.0,0.3608]
[1763441270481,0.3608,89729.0,89681.0,0.3608]
[1763441270674,0.00199978,89720.0,89711.0,0.3608]
[1763441270876,0.3608,89729.0,89715.0,0.00148288]
[1763441271179,0.3608,89765.0,89728.0,0.3608]
[1763441271384,0.0001672,89755.0,89746.0,0.00190656]
[1763441271680,0.0001672,89755.0,89754.0,0.3608]
[1763441272474,0.0001672,89755.0,89750.0,0.00326116]
[1763441272675,0.0001672,89755.0,89754.0,0.3608]
[1763441272876,0.0001672,89755.0,89754.0,0.36313024]
[1763441273382,0.05834024,89845.0,89754.0,0.36313024]
[1763441273383,0.3608,89791.0,89754.0,0.36313024]
[1763441273575,0.00199978,89790.0,89788.0,0.3608]
[1763441273879,0.3608,89814.0,89800.0,0.00093092]
[1763441274082,0.30364,89821.0,89813.0,0.3608]
[1763441274276,0.3608,89836.0,89817.0,0.36354666]
[1763441274277,0.00199978,89820.0,89817.0,0.36354666]
[1763441274672,0.00199978,89820.0,89818.0,0.00295487]
[1763441274879,0.30348,89819.0,89818.0,0.00295487]
[1763441275074,0.30348,89819.0,89818.0,0.00316308]
[1763441275276,0.00199978,89820.0,89818.0,0.00316308]
[1763441275476,0.00016701,89827.0,89820.0,0.00093092]
[1763441275778,0.3608,89863.0,89826.0,0.3608]
[1763441275978,0.3608,89863.0,89845.0,0.3608]
[1763441275979,0.00199978,89850.0,89845.0,0.3608]
[1763441276375,0.00199978,89850.0,89840.0,0.00093092]
[1763441276575,0.00199978,89850.0,89845.0,0.00337129]
[1763441276776,0.303,89849.0,89846.0,0.3608]
[1763441276975,0.00016701,89856.0,89846.0,0.3608]
[1763441277276,0.11157861,89856.0,89855.0,0.3608]
[1763441277475,0.1114089,89859.0,89855.0,0.3608]
[1763441277681,0.1114089,89859.0,89857.0,0.00337129]
[1763441277884,0.1114277,89843.0,89839.0,0.00016701]
[1763441278084,0.1114302,89841.0,89839.0,1e-08]
[1763441278387,0.00199978,89850.0,89840.0,0.3608]
[1763441278589,0.00199978,89850.0,89840.0,0.00093092]
[1763441278590,0.36279978,89850.0,89840.0,0.00093092]
[1763441278784,0.3608,89841.0,89839.0,1e-08]
[1763441278986,0.3608,89841.0,89823.0,0.3608]
[1763441278987,0.3608,89841.0,89830.0,0.00093092]
[1763441279190,0.3608,89831.0,89812.0,0.3608]
[1763441279378,0.00199978,89820.0,89810.0,0.00093092]
[1763441279577,0.3608,89818.0,89810.0,0.00093092]
[1763441279883,0.52846784,89817.0,89805.0,0.00016701]
[1763441280084,0.3608,89806.0,89782.0,0.3608]
[1763441280387,0.3608,89806.0,89720.0,0.00999999]
[1763441280388,0.16766784,89805.0,89758.0,0.3608]
[1763441280584,0.16766784,89805.0,89768.0,0.3608]
[1763441280585,0.3608,89786.0,89768.0,0.3608]
[1763441280783,0.3608,89785.0,89780.0,0.00093092]
[1763441281086,0.3608,89785.0,89756.0,0.3608]
[1763441281087,0.00199978,89780.0,89774.0,0.00016701]
[1763441281394,0.16734878,89779.0,89775.0,1.48994497]
[1763441281587,0.16734878,89779.0,89776.0,0.3608]
[1763441281588,0.30236,89778.0,89776.0,0.3608]
[1763441281788,0.6632,89777.0,89775.0,1.48994497]
[1763441281978,9.509e-05,89776.0,89775.0,1.48994497]
[1763441282383,0.30107153,89830.0,89775.0,1.48994497]
[1763441282384,0.3608,89798.0,89775.0,1.48994497]
[1763441282578,0.52684642,89776.0,89775.0,1.48994497]
[1763441282783,0.52684642,89776.0,89774.0,0.00016701]
[1763441282784,0.3608,89776.0,89726.0,0.3608]
[1763441282987,0.3608,89741.0,89730.0,0.00093092]
[1763441283185,0.00199978,89740.0,89732.0,0.3608]
[1763441283488,0.00199978,89740.0,89730.0,0.00093092]
[1763441283489,0.3608,89734.0,89730.0,0.00093092]
[1763441283700,0.16688521,89739.0,89731.0,1.5]
[1763441283888,0.3608,89778.0,89738.0,0.3608]
[1763441284187,0.3608,89778.0,89760.0,0.49806]
[1763441284188,0.00199978,89770.0,89760.0,0.49806]
[1763441284384,0.16618177,89779.0,89760.0,0.49806]
[1763441284385,0.16618177,89779.0,89770.0,0.00093092]
[1763441284587,0.3608,89779.0,89770.0,0.00093092]
[1763441284789,0.00199978,89780.0,89778.0,0.3608]
[1763441285290,0.1115072,89779.0,89778.0,0.3608]
[1763441285883,0.3608,89790.0,89778.0,0.3608]
[1763441285884,0.111481,89801.0,89780.0,0.00093092]
[1763441286086,0.3608,89824.0,89800.0,0.3608]
[1763441286287,0.10173109,89817.0,89811.0,0.3608]
[1763441286486,0.00199978,89820.0,89811.0,0.3608]
[1763441286786,0.3608,89816.0,89810.0,0.00093092]
[1763441286985,0.00199978,89820.0,89810.0,0.00093092]
[1763441287182,0.00199978,89820.0,89812.0,0.3608]
[1763441287381,0.00199978,89820.0,89810.0,0.36173092]
[1763441287587,0.36279978,89820.0,89810.0,0.00093092]
[1763441287785,0.00199978,89820.0,89812.0,0.3608]
[1763441287981,0.00199978,89820.0,89810.0,0.00093092]
[1763441288183,0.7216,89818.0,89804.0,0.00016702]
[1763441288393,0.00199978,89810.0,89805.0,0.3608]
[1763441288710,0.00199978,89810.0,89808.0,0.3608]